fUSD/lending_fUSD_20251115
["ID","MTS","AMOUNT","RATE_DAILY","PERIOD"]
[394073175,1763243467569,-500.0,0.00041452,120]
[394073176,1763243467610,-237.5922859,0.00041452,120]
[394073177,1763243467654,-500.0,0.00041452,120]
[394073178,1763243467697,-500.0,0.00041452,120]
[394073179,1763243467741,-500.0,0.00041452,120]
[394073180,1763243467785,-500.0,0.00041452,120]
[394073181,1763243467828,-500.0,0.00041452,120]
[394073182,1763243467871,-500.0,0.00041452,120]
[394073183,1763243467914,-500.0,0.00041452,120]
[394073184,1763243467959,-500.0,0.00041452,120]
[394073185,1763243468003,-500.0,0.00041452,120]
[394073186,1763243468046,-500.0,0.00041452,120]
[394073187,1763243468091,-500.0,0.00041452,120]
[394073188,1763243468136,-500.0,0.00041452,120]
[394073189,1763243468181,-637.78803525,0.00041452,120]
[394073190,1763243468225,-500.0,0.00041452,120]
[394073191,1763243468268,-500.0,0.00041452,120]
[394073192,1763243468315,-500.0,0.00041452,120]
[394073193,1763243468360,-500.0,0.00041452,120]
[394073194,1763243468402,-500.0,0.00041452,120]
[394073195,1763243468443,-500.0,0.00041452,120]
[394073196,1763243468483,-500.0,0.00041452,120]
[394073197,1763243468527,-500.0,0.00041452,120]
[394073198,1763243468571,-500.0,0.00041452,120]
[394073199,1763243468614,-500.0,0.00041452,120]
[394073200,1763243468656,-500.0,0.00041452,120]
[394073201,1763243468700,-500.0,0.00041452,120]
[394073202,1763243468743,-500.0,0.00041452,120]
[394073203,1763243468787,-401.89592312,0.00041452,120]
[394073204,1763243468830,-500.0,0.00041452,120]
[394073205,1763243468875,-520.85957601,0.00041452,120]
[394073206,1763243468921,-500.0,0.00041452,120]
[394073207,1763243468966,-500.0,0.00041452,120]
[394073208,1763243469012,-500.0,0.00041452,120]
[394073209,1763243469058,-500.0,0.00041452,120]
[394073210,1763243469102,-500.0,0.00041452,120]
[394073211,1763243469147,-500.0,0.00041452,120]
[394073212,1763243469189,-500.0,0.00041452,120]
[394073213,1763243469238,-560.76615943,0.00041452,120]
[394073214,1763243469283,-500.0,0.00041452,120]
[394073215,1763243469325,-403.44211352,0.00041452,120]
[394073216,1763243469367,-525.87927355,0.00041452,120]
[394073217,1763243469411,-500.0,0.00041452,120]
[394073218,1763243469451,-500.0,0.00041452,120]
[394073219,1763243469491,-500.0,0.00041452,120]
[394073220,1763243469531,-510.12708927,0.00041452,120]
[394073221,1763243469572,-500.0,0.00041452,120]
[394073222,1763243469612,-500.0,0.00041452,120]
[394073223,1763243469653,-500.0,0.00041452,120]
[394073224,1763243469694,-500.0,0.00041452,120]
[394073225,1763243469737,-410.8650853,0.00041452,120]
[394073226,1763243469779,-500.0,0.00041452,120]
[394073227,1763243469823,-500.0,0.00041452,120]
[394073228,1763243469865,-500.0,0.00041452,120]
[394073229,1763243469907,-500.0,0.00041452,120]
[394073230,1763243469950,-500.0,0.00041452,120]
[394073231,1763243469994,-500.0,0.00041452,120]
[394073232,1763243470040,-557.03059546,0.00041452,120]
[394073233,1763243470085,-500.0,0.00041452,120]
[394073234,1763243470127,-500.0,0.00041452,120]
[394073235,1763243470170,-500.0,0.00041452,120]
[394073236,1763243470213,-500.0,0.00041452,120]
[394073237,1763243470254,-500.0,0.00041452,120]
[394073238,1763243470300,-500.0,0.00041452,120]
[394073239,1763243470343,-500.0,0.00041452,120]
[394073240,1763243470384,-508.94049526,0.00041452,120]
[394073241,1763243470424,-500.0,0.00041452,120]
[394073242,1763243470465,-500.0,0.00041452,120]
[394073243,1763243470507,-500.0,0.00041452,120]
[394073244,1763243470547,-500.0,0.00041452,120]
[394073245,1763243470596,-508.17061323,0.00041452,120]
[394073246,1763243470645,-500.0,0.00041452,120]
[394073247,1763243470696,-500.0,0.00041452,120]
[394073248,1763243470739,-500.0,0.00041452,120]
[394073249,1763243470782,-500.0,0.00041452,120]
[394073250,1763243470825,-500.0,0.00041452,120]
[394073251,1763243470870,-500.0,0.00041452,120]
[394073252,1763243470914,-527.5974809,0.00041452,120]
[394073253,1763243470955,-500.0,0.00041452,120]
[394073254,1763243470997,-500.0,0.00041452,120]
[394073255,1763243471043,-500.0,0.00041452,120]
[394073256,1763243471085,-502.28136441,0.00041452,120]
[394073257,1763243471130,-438.67855724,0.00041452,120]
[394073258,1763243471172,-500.0,0.00041452,120]
[394073259,1763243471215,-500.0,0.00041452,120]
[394073260,1763243471257,-631.6026673,0.00041452,120]
[394073261,1763243471299,-362.44249151,0.00041452,120]
[394073262,1763243471343,-500.0,0.00041452,120]
[394073263,1763243471386,-500.0,0.00041452,120]
[394073264,1763243471431,-500.0,0.00041452,120]
[394073265,1763243471472,-519.32819175,0.00041452,120]
[394073266,1763243471513,-500.0,0.00041452,120]
[394073267,1763243471555,-500.0,0.00041452,120]
[394073268,1763243471598,-500.0,0.00041452,120]
[394073269,1763243471640,-500.0,0.00041452,120]
[394073270,1763243471693,-163.60448321,0.00041452,120]
[394073271,1763243471736,-401.08115969,0.00041452,120]
[394073272,1763243471971,-500.0,0.00041452,120]
[394073273,1763243472042,-500.0,0.00041452,120]
[394073274,1763243472087,-500.0,0.00041452,120]
[394073275,1763243472132,-500.0,0.00041452,120]
[394073276,1763243472177,-400.0,0.00041452,120]
[394073277,1763243472220,-500.0,0.00041452,120]
[394073278,1763243472269,-362.77144115,0.00041452,120]
[394073279,1763243472318,-500.0,0.00041452,120]
[394073280,1763243472362,-619.14345636,0.00041452,120]
[394073281,1763243472403,-500.0,0.00041452,120]
[394073282,1763243472444,-500.0,0.00041452,120]
[394073283,1763243472486,-500.0,0.00041452,120]
[394073284,1763243472532,-500.0,0.00041452,120]
[394073285,1763243472577,-500.0,0.00041452,120]
[394073286,1763243472622,-256.18140252,0.00041452,120]
[394073287,1763243472670,-500.0,0.00041452,120]
[394073288,1763243472716,-500.0,0.00041452,120]
[394073289,1763243472763,-500.0,0.00041452,120]
[394073290,1763243472807,-303.175543,0.00041452,120]
[394073291,1763243472858,-500.0,0.00041452,120]
[394073292,1763243472905,-500.0,0.00041452,120]
[394073293,1763243472950,-188.76240049,0.00041452,120]
[394073294,1763243472994,-500.0,0.00041452,120]
[394073295,1763243473041,-500.0,0.00041452,120]
[394073296,1763243473085,-500.0,0.00041452,120]
[394073297,1763243473130,-555.19496943,0.00041452,120]
[394073298,1763243473176,-500.0,0.00041452,120]
[394073299,1763243473227,-500.0,0.00041452,120]
[394073300,1763243473276,-500.0,0.00041452,120]
[394073301,1763243473323,-574.4498473,0.00041452,120]
[394073302,1763243473370,-500.0,0.00041452,120]
[394073303,1763243473415,-500.0,0.00041452,120]
[394073304,1763243473459,-500.0,0.00041452,120]
[394073305,1763243473504,-500.0,0.00041452,120]
[394073306,1763243473547,-500.0,0.00041452,120]
[394073307,1763243473594,-500.0,0.00041452,120]
[394073308,1763243473640,-500.0,0.00041452,120]
[394073309,1763243473687,-500.0,0.00041452,120]
[394073310,1763243473733,-500.0,0.00041452,120]
[394073311,1763243473777,-500.0,0.00041452,120]
[394073312,1763243473821,-405.78918387,0.00041452,120]
[394073313,1763243473865,-500.0,0.00041452,120]
[394073314,1763243473914,-393.82118685,0.00041452,120]
[394073315,1763243473961,-500.0,0.00041452,120]
[394073316,1763243474006,-283.69510433,0.00041452,120]
[394073317,1763243474049,-229.83463085,0.00041452,120]
[394073318,1763243474092,-367.7847161,0.00041452,120]
[394073319,1763243474134,-500.0,0.00041452,120]
[394073320,1763243474177,-287.24532374,0.00041452,120]
[394073321,1763243474223,-500.0,0.00041452,120]
[394073322,1763243474267,-500.0,0.00041452,120]
[394073323,1763243474320,-500.0,0.00041452,120]
[394073324,1763243474370,-500.0,0.00041452,120]
[394073325,1763243474421,-500.0,0.00041452,120]
[394073326,1763243474469,-500.0,0.00041452,120]
[394073327,1763243474511,-500.0,0.00041452,120]
[394073328,1763243474554,-500.0,0.00041452,120]
[394073329,1763243474597,-500.0,0.00041452,120]
[394073330,1763243474639,-500.0,0.00041452,120]
[394073331,1763243474684,-500.0,0.00041452,120]
[394073332,1763243474728,-500.0,0.00041452,120]
[394073333,1763243474771,-515.83875737,0.00041452,120]
[394073334,1763243474814,-500.0,0.00041452,120]
[394073335,1763243474858,-500.0,0.00041452,120]
[394073336,1763243474902,-500.0,0.00041452,120]
[394073337,1763243474946,-470.42391109,0.00041452,120]
[394073338,1763243474990,-500.0,0.00041452,120]
[394073339,1763243475034,-500.0,0.00041452,120]
[394073340,1763243475078,-500.0,0.00041452,120]
[394073341,1763243475124,-500.0,0.00041452,120]
[394073342,1763243475171,-466.23659719,0.00041452,120]
[394073343,1763243475218,-412.60818926,0.00041452,120]
[394073344,1763243475264,-603.31272631,0.00041452,120]
[394073345,1763243475315,-500.0,0.00041452,120]
[394073346,1763243475363,-373.48046963,0.00041452,120]
[394073347,1763243475408,-500.0,0.00041452,120]
[394073348,1763243475454,-308.06457884,0.00041452,120]
[394073349,1763243475499,-500.0,0.00041452,120]
[394073350,1763243475543,-500.0,0.00041452,120]
[394073351,1763243475586,-500.0,0.00041452,120]
[394073352,1763243475633,-575.49980457,0.00041452,120]
[394073353,1763243475678,-500.0,0.00041452,120]
[394073354,1763243475724,-500.0,0.00041452,120]
[394073355,1763243475774,-500.0,0.00041452,120]
[394073356,1763243475831,-511.20837187,0.00041452,120]
[394073357,1763243475883,-500.0,0.00041452,120]
[394073358,1763243475928,-500.0,0.00041452,120]
[394073359,1763243475974,-500.0,0.00041452,120]
[394073360,1763243476020,-170.73160432,0.00041452,120]
[394073361,1763243476071,-500.0,0.00041452,120]
[394073362,1763243476115,-500.0,0.00041452,120]
[394073363,1763243476160,-500.0,0.00041452,120]
[394073364,1763243476208,-500.0,0.00041452,120]
[394073365,1763243476252,-150.52663905,0.00041452,120]
[394073366,1763243476296,-500.0,0.00041452,120]
[394073367,1763243476341,-500.0,0.00041452,120]
[394073368,1763243476386,-500.0,0.00041452,120]
[394073369,1763243476428,-500.0,0.00041452,120]
[394073370,1763243476472,-623.09224886,0.00041452,120]
[394073371,1763243476519,-500.0,0.00041452,120]
[394073372,1763243476569,-500.0,0.00041452,120]
[394073373,1763243476621,-500.0,0.00041452,120]
[394073374,1763243476668,-213.55821017,0.00041452,120]
[394073375,1763243476722,-502.75412166,0.00041452,120]
[394073376,1763243476771,-385.29022372,0.00041452,120]
[394073377,1763243476975,-500.0,0.00041452,120]
[394073378,1763243477025,-500.0,0.00041452,120]
[394073379,1763243477074,-500.0,0.00041452,120]
[394073380,1763243477123,-500.0,0.00041452,120]
[394073381,1763243477166,-500.0,0.00041452,120]
[394073382,1763243477210,-500.0,0.00041452,120]
[394073383,1763243477253,-500.0,0.00041452,120]
[394073384,1763243477296,-500.0,0.00041452,120]
[394073385,1763243477343,-500.0,0.00041452,120]
[394073386,1763243477391,-500.0,0.00041452,120]
[394073387,1763243477437,-500.0,0.00041452,120]
[394073388,1763243477481,-500.0,0.00041452,120]
[394073389,1763243477523,-500.0,0.00041452,120]
[394073390,1763243477568,-609.65336998,0.00041452,120]
[394073391,1763243477615,-500.0,0.00041452,120]
[394073392,1763243477661,-500.0,0.00041452,120]
[394073393,1763243477709,-500.0,0.00041452,120]
[394073394,1763243477757,-500.0,0.00041452,120]
[394073395,1763243477805,-282.06135835,0.00041452,120]
[394073396,1763243477853,-228.8027871,0.00041452,120]
[394073397,1763243477900,-422.5201564,0.00041452,120]
[394073398,1763243477947,-500.0,0.00041452,120]
[394073399,1763243477990,-500.0,0.00041452,120]
[394073400,1763243478033,-620.20624005,0.00041452,120]
[394073401,1763243478076,-425.48794072,0.00041452,120]
[394073402,1763243478119,-349.08054756,0.00041452,120]
[394073403,1763243478170,-500.0,0.00041452,120]
[394073404,1763243478219,-309.51606451,0.00041452,120]
[394073405,1763243478268,-450.0,0.00041452,120]
[394073406,1763243478319,-500.0,0.00041452,120]
[394073407,1763243478368,-503.77699416,0.00041452,120]
[394073408,1763243478411,-500.0,0.00041452,120]
[394073409,1763243478454,-500.0,0.00041452,120]
[394073410,1763243478497,-621.43630802,0.00041452,120]
[394073411,1763243478541,-411.35388136,0.00041452,120]
[394073412,1763243478584,-500.0,0.00041452,120]
[394073413,1763243478630,-500.0,0.00041452,120]
[394073414,1763243478676,-500.0,0.00041452,120]
[394073415,1763243478723,-500.0,0.00041452,120]
[394073416,1763243478770,-500.0,0.00041452,120]
[394073417,1763243478818,-500.0,0.00041452,120]
[394073418,1763243478863,-500.0,0.00041452,120]
[394073419,1763243478910,-500.0,0.00041452,120]
[394073420,1763243478953,-500.0,0.00041452,120]
[394073421,1763243478995,-500.0,0.00041452,120]
[394073422,1763243479037,-500.0,0.00041452,120]
[394073423,1763243479085,-445.97121589,0.00041452,120]
[394073424,1763243479135,-500.0,0.00041452,120]
[394073425,1763243479185,-500.0,0.00041452,120]
[394073426,1763243479229,-500.0,0.00041452,120]
[394073427,1763243479271,-408.02085084,0.00041452,120]
[394073428,1763243479315,-349.058814,0.00041452,120]
[394073429,1763243479362,-500.0,0.00041452,120]
[394073430,1763243479404,-500.0,0.00041452,120]
[394073431,1763243479447,-406.84767991,0.00041452,120]
[394073432,1763243479489,-500.0,0.00041452,120]
[394073433,1763243479528,-500.0,0.00041452,120]
[394073434,1763243479569,-500.0,0.00041452,120]
[394073435,1763243479609,-432.61580749,0.00041452,120]
[394073436,1763243479650,-500.0,0.00041452,120]
[394073437,1763243479693,-606.57841627,0.00041452,120]
[394073438,1763243479736,-500.0,0.00041452,120]
[394073439,1763243479783,-500.0,0.00041452,120]
[394073440,1763243479830,-500.0,0.00041452,120]
[394073441,1763243479877,-500.0,0.00041452,120]
[394073442,1763243479925,-500.0,0.00041452,120]
[394073443,1763243479970,-500.0,0.00041452,120]
[394073444,1763243480013,-500.0,0.00041452,120]
[394073445,1763243480056,-500.0,0.00041452,120]
[394073446,1763243480099,-500.0,0.00041452,120]
[394073447,1763243480142,-500.0,0.00041452,120]
[394073448,1763243480184,-500.0,0.00041452,120]
[394073449,1763243480227,-500.0,0.00041452,120]
[394073450,1763243480270,-500.0,0.00041452,120]
[394073451,1763243480317,-500.0,0.00041452,120]
[394073452,1763243480361,-500.0,0.00041452,120]
[394073453,1763243480405,-500.0,0.00041452,120]
[394073454,1763243480447,-307.44,0.00041452,120]
[394073455,1763243480488,-507.50726473,0.00041452,120]
[394073456,1763243480531,-159.999994,0.00041452,120]
[394073457,1763243480575,-401.48356249,0.00041452,30]
[394073458,1763243480622,-372.17363645,0.00041452,120]
[394073459,1763243480668,-357.07734912,0.00041452,120]
[394073460,1763243480714,-441.71856853,0.00041452,120]
[394073461,1763243480759,-395.0059097,0.00041452,120]
[394073462,1763243480805,-475.23386323,0.00041452,120]
[394073463,1763243480857,-235.98649771,0.00041452,120]
[394073464,1763243480902,-236.46326232,0.00041452,120]
[394073465,1763243480947,-279.20362007,0.00041452,30]
[394073466,1763243480991,-243.66203996,0.00041452,120]
[394073467,1763243481035,-405.17308532,0.00041452,120]
[394073468,1763243481078,-167.37510846,0.00041452,30]
[394073469,1763243481121,-764.10775267,0.00041452,30]
[394073470,1763243481164,-319.11663788,0.00041452,120]
[394073471,1763243481206,-176.64430722,0.00041452,120]
[394073472,1763243481247,-164.55320961,0.00041452,120]
[394073473,1763243481290,-210.3238993,0.00041452,30]
[394073474,1763243481332,-301.26966912,0.00041452,120]
[394073475,1763243481373,-171.21928543,0.00041452,90]
[394073476,1763243481414,-1013.9373734,0.00041452,120]
[394073477,1763243481457,-295.46111003,0.00041452,120]
[394073478,1763243481501,-264.56581519,0.00041452,120]
[394073479,1763243481543,-338.78244157,0.00041452,120]
[394073480,1763243481586,-426.64722563,0.00041452,30]
[394073481,1763243481780,-219.52263252,0.00041452,30]
[394073482,1763243481827,-533.93581325,0.00041452,120]
[394073483,1763243481872,-482.36535362,0.00041452,120]
[394073484,1763243481917,-370.59359156,0.00041452,120]
[394073485,1763243481963,-769.43831235,0.00041452,120]
[394073486,1763243482008,-608.42818376,0.00041452,30]
[394073487,1763243482051,-154.89235142,0.00041452,120]
[394073488,1763243482094,-370.33921345,0.00041452,30]
[394073489,1763243482137,-227.90230026,0.00041452,30]
[394073490,1763243482181,-708.37137878,0.00041452,120]
[394073491,1763243482223,-349.1126362,0.00041452,30]
[394073492,1763243482267,-228.38301009,0.00041452,120]
[394073493,1763243482311,-462.31240669,0.00041452,120]
[394073494,1763243482355,-216.46658361,0.00041452,120]
[394073495,1763243482400,-278.48235249,0.00041452,120]
[394073496,1763243482444,-332.80689578,0.00041452,120]
[394073497,1763243482487,-456.12007292,0.00041452,120]
[394073498,1763243482531,-530.57612956,0.00041452,120]
[394073499,1763243482574,-422.82257548,0.00041452,30]
[394073500,1763243482616,-456.6473723,0.00041452,120]
[394073501,1763243482660,-279.98610796,0.00041452,120]
[394073502,1763243482704,-215.90138321,0.00041452,31]
[394073503,1763243482749,-277.79832084,0.00041452,120]
[394073504,1763243482793,-428.19268961,0.00041452,120]
[394073505,1763243482836,-215.09183944,0.00041452,30]
[394073506,1763243482880,-356.70935466,0.00041452,120]
[394073507,1763243482924,-814.16928386,0.00041452,80]
[394073508,1763243482968,-351.07672583,0.00041452,30]
[394073509,1763243483011,-167.31473785,0.00041452,30]
[394073510,1763243483053,-291.48841586,0.00041452,120]
[394073511,1763243483096,-1252.48703172,0.00041452,120]
[394073512,1763243483141,-567.6044392,0.00041452,120]
[394073513,1763243483185,-281.72083642,0.00041452,30]
[394073514,1763243483229,-248.42337563,0.00041452,30]
[394073515,1763243483273,-467.59369045,0.00041452,30]
[394073516,1763243483323,-652.39151704,0.00041452,30]
[394073517,1763243483369,-236.47788881,0.00041452,90]
[394073518,1763243483413,-300.10883934,0.00041452,120]
[394073519,1763243483458,-214.98817654,0.00041452,31]
[394073520,1763243483501,-421.95070495,0.00041452,120]
[394073521,1763243483545,-453.33149402,0.00041452,120]
[394073522,1763243483589,-744.89451306,0.00041452,120]
[394073523,1763243483633,-661.32971437,0.00041452,120]
[394073524,1763243483678,-455.58621668,0.00041452,30]
[394073525,1763243483723,-249.85141085,0.00041452,120]
[394073526,1763243483768,-244.94926127,0.00041452,120]
[394073527,1763243483814,-297.10238434,0.00041452,120]
[394073528,1763243483860,-361.26616508,0.00041452,120]
[394073529,1763243483908,-762.75344494,0.00041452,120]
[394073530,1763243483956,-157.87655095,0.00041452,120]
[394073531,1763243484004,-276.70520798,0.00041452,30]
[394073532,1763243484051,-365.42475493,0.00041452,30]
[394073533,1763243484096,-368.99312432,0.00041452,120]
[394073534,1763243484142,-205.28831262,0.00041452,30]
[394073535,1763243484188,-217.14316415,0.00041452,60]
[394073536,1763243484235,-333.56445532,0.00041452,48]
[394073537,1763243484281,-195.45060916,0.00041452,120]
[394073538,1763243484329,-228.68451713,0.00041452,120]
[394073539,1763243484375,-498.09985082,0.00041452,60]
[394073540,1763243484421,-538.77458426,0.00041452,30]
[394073541,1763243484466,-1323.10214619,0.00041452,120]
[394073542,1763243484509,-666.79991162,0.00041452,30]
[394073543,1763243484552,-559.17506354,0.00041452,30]
[394073544,1763243484596,-365.56618622,0.00041452,120]
[394073545,1763243484640,-262.96340962,0.00041452,120]
[394073546,1763243484683,-369.99581166,0.00041452,120]
[394073547,1763243484726,-416.15276054,0.00041452,120]
[394073548,1763243484770,-492.85781943,0.00041452,60]
[394073549,1763243484813,-404.55737109,0.00041452,30]
[394073550,1763243484857,-168.71570683,0.00041452,120]
[394073551,1763243484900,-185.39354531,0.00041452,120]
[394073552,1763243484947,-199.64943433,0.00041452,120]
[394073553,1763243484990,-161.2135472,0.00041452,120]
[394073554,1763243485037,-321.10499603,0.00041452,120]
[394073555,1763243485090,-161.16385279,0.00041452,120]
[394073556,1763243485138,-228.81418477,0.00041452,30]
[394073557,1763243485186,-500.0,0.00041452,120]
[394073558,1763243485237,-500.0,0.00041452,120]
[394073559,1763243485288,-500.0,0.00041452,120]
[394073560,1763243485336,-500.0,0.00041452,120]
[394073561,1763243485385,-500.0,0.00041452,120]
[394073562,1763243485431,-500.0,0.00041452,120]
[394073563,1763243485479,-500.0,0.00041452,120]
[394073564,1763243485524,-500.0,0.00041452,120]
[394073565,1763243485569,-500.0,0.00041452,120]
[394073566,1763243485617,-500.0,0.00041452,120]
[394073567,1763243485662,-500.0,0.00041452,120]
[394073568,1763243485707,-500.0,0.00041452,120]
[394073569,1763243485750,-500.0,0.00041452,120]
[394073570,1763243485794,-500.0,0.00041452,120]
[394073571,1763243485838,-500.0,0.00041452,120]
[394073572,1763243485882,-500.0,0.00041452,120]
[394073573,1763243485925,-500.0,0.00041452,120]
[394073574,1763243485969,-500.0,0.00041452,120]
[394073575,1763243486013,-500.0,0.00041452,120]
[394073576,1763243486056,-500.0,0.00041452,120]
[394073577,1763243486101,-500.0,0.00041452,120]
[394073578,1763243486146,-500.0,0.00041452,120]
[394073579,1763243486191,-500.0,0.00041452,120]
[394073580,1763243486236,-500.0,0.00041452,120]
[394073581,1763243486280,-500.0,0.00041452,120]
[394073582,1763243486327,-500.0,0.00041452,120]
[394073583,1763243486372,-500.0,0.00041452,120]
[394073584,1763243486422,-500.0,0.00041452,120]
[394073585,1763243486480,-500.0,0.00041452,120]
[394073586,1763243486685,-500.0,0.00041452,120]
[394073587,1763243486733,-500.0,0.00041452,120]
[394073588,1763243486780,-500.0,0.00041452,120]
[394073589,1763243486826,-631.53,0.00041452,120]
[394073590,1763243486869,-500.0,0.00041452,120]
[394073591,1763243486913,-500.0,0.00041452,120]
[394073592,1763243486957,-500.0,0.00041452,120]
[394073593,1763243487000,-500.0,0.00041452,120]
[394073594,1763243487043,-500.0,0.00041452,120]
[394073595,1763243487086,-500.0,0.00041452,120]
[394073596,1763243487135,-500.0,0.00041452,120]
[394073597,1763243487184,-500.0,0.00041452,120]
[394073598,1763243487235,-500.0,0.00041452,120]
[394073599,1763243487287,-174.04,0.00041452,120]
[394073600,1763243487340,-500.0,0.00041452,120]
[394073601,1763243487390,-500.0,0.00041452,120]
[394073602,1763243487439,-500.0,0.00041452,120]
[394073603,1763243487487,-500.0,0.00041452,120]
[394073604,1763243487533,-500.0,0.00041452,120]
[394073605,1763243487578,-500.0,0.00041452,120]
[394073606,1763243487622,-500.0,0.00041452,120]
[394073607,1763243487669,-500.0,0.00041452,120]
[394073608,1763243487716,-500.0,0.00041452,120]
[394073609,1763243487762,-500.0,0.00041452,120]
[394073610,1763243487811,-355.58,0.00041452,120]
[394073611,1763243487861,-500.0,0.00041452,120]
[394073612,1763243487908,-500.0,0.00041452,120]
[394073613,1763243487954,-500.0,0.00041452,120]
[394073614,1763243487999,-500.0,0.00041452,120]
[394073615,1763243488042,-500.0,0.00041452,120]
[394073616,1763243488087,-500.0,0.00041452,120]
[394073617,1763243488133,-500.0,0.00041452,120]
[394073618,1763243488179,-500.0,0.00041452,120]
[394073619,1763243488223,-500.0,0.00041452,120]
[394073620,1763243488268,-500.0,0.00041452,120]
[394073621,1763243488315,-215.44,0.00041452,120]
[394073622,1763243488363,-938.4,0.00041452,120]
[394073623,1763243488410,-938.4,0.00041452,120]
[394073624,1763243488455,-938.4,0.00041452,120]
[394073625,1763243488500,-938.4,0.00041452,120]
[394073626,1763243488552,-938.4,0.00041452,120]
[394073627,1763243488600,-938.4,0.00041452,120]
[394073628,1763243488649,-938.4,0.00041452,120]
[394073629,1763243488697,-938.4,0.00041452,120]
[394073630,1763243488743,-938.4,0.00041452,120]
[394073631,1763243488792,-938.4,0.00041452,120]
[394073632,1763243488839,-938.4,0.00041452,120]
[394073633,1763243488886,-938.4,0.00041452,120]
[394073634,1763243488932,-938.4,0.00041452,120]
[394073635,1763243488978,-938.4,0.00041452,120]
[394073636,1763243489024,-938.4,0.00041452,120]
[394073637,1763243489074,-938.4,0.00041452,120]
[394073638,1763243489127,-938.4,0.00041452,120]
[394073639,1763243489176,-938.4,0.00041452,120]
[394073640,1763243489224,-938.4,0.00041452,120]
[394073641,1763243489271,-938.4,0.00041452,120]
[394073642,1763243489319,-938.4,0.00041452,120]
[394073643,1763243489371,-938.4,0.00041452,120]
[394073644,1763243489419,-938.4,0.00041452,120]
[394073645,1763243489465,-938.59,0.00041452,120]
[394073646,1763243489510,-500.0,0.00041452,120]
[394073647,1763243489556,-500.0,0.00041452,120]
[394073648,1763243489601,-500.0,0.00041452,120]
[394073649,1763243489650,-500.0,0.00041452,120]
[394073650,1763243489697,-500.0,0.00041452,120]
[394073651,1763243489746,-500.0,0.00041452,120]
[394073652,1763243489793,-500.0,0.00041452,120]
[394073653,1763243489839,-500.0,0.00041452,120]
[394073654,1763243489887,-500.0,0.00041452,120]
[394073655,1763243489934,-500.0,0.00041452,120]
[394073656,1763243489980,-500.0,0.00041452,120]
[394073657,1763243490026,-500.0,0.00041452,120]
[394073658,1763243490072,-500.0,0.00041452,120]
[394073659,1763243490120,-500.0,0.00041452,120]
[394073660,1763243490167,-500.0,0.00041452,120]
[394073661,1763243490213,-500.0,0.00041452,120]
[394073662,1763243490259,-500.0,0.00041452,120]
[394073663,1763243490304,-500.0,0.00041452,120]
[394073664,1763243490350,-500.0,0.00041452,120]
[394073665,1763243490411,-500.0,0.00041452,120]
[394073666,1763243490457,-500.0,0.00041452,120]
[394073667,1763243490502,-470.92,0.00041452,120]
[394073668,1763243490546,-500.0,0.00041452,120]
[394073669,1763243490591,-500.0,0.00041452,120]
[394073670,1763243490643,-500.0,0.00041452,120]
[394073671,1763243490698,-500.0,0.00041452,120]
[394073672,1763243490746,-500.0,0.00041452,120]
[394073673,1763243490792,-500.0,0.00041452,120]
[394073674,1763243490838,-500.0,0.00041452,120]